Cogmind - Beta 15 @@@ ROGUE MODE // 2025.07.20 @ 15:27:06 Player: DiverHaze Result: Destroyed by X-62 Marksman with Gauss Rifle Performance ------------- Evolutions (2) 1000 Regions Visited (4) 800 Robots Destroyed (20) 100 Value Destroyed (600) 600 Prototype IDs (1) 20 Alien Tech Used (0) 0 Bonus (0) 0 TOTAL SCORE: 2520 Bonus ------- None Cogmind --------- Core Integrity 0/550 Matter 164/300 Energy 100/100 System Corruption 0% Temperature Cool (0) Movement Core (100) Ox1 Location -8/Materials Parts ------- > --- POWER (2) -------- (None) > --- PROPULSION (2) --- (None) > --- UTILITY (5) ------ Small Storage Unit Visual Processing Unit Signal Interpreter Advanced Targeting Computer > --- WEAPON (2) ------- (None) > --- INVENTORY (8) ---- Airjet Cooling System Hardened Medium Armor Plating Mini Grenade Launcher Peak State ------------ > --- POWER ------------ Ion Engine Light Nuclear Core > --- PROPULSION ------- Wheel Wheel > --- UTILITY ---------- Improved Heat Sink Small Storage Unit Visual Processing Unit Signal Interpreter Advanced Targeting Computer > --- WEAPON ----------- Beam Rifle Beam Rifle > --- INVENTORY -------- Light Treads Light Treads Cooling System Flak Cannon Flak Cannon Slug Cannon [Rating: 21] Favorites ----------- Power Light Nuclear Core Engine Ion Engine Power Core Light Nuclear Core Propulsion Wheel Treads Light Treads Wheel Wheel Utility Small Storage Unit Device Improved Heat Sink Storage Small Storage Unit Processor Visual Processing Unit Weapon Beam Rifle Energy Gun Beam Rifle Ballistic Gun Assault Rifle Ballistic Cannon Flak Cannon Build | -11 -10 -10 -9 -8 ------- Run | Yrd Mat Min Mat Mat Slots Evolved 4 | . . . 2 2 Power 1 | . . . . 1 Propulsion . | . . . . . Utility 3 | . . . 2 1 Weapon . | . . . . . Parts Attached 25 | 6 5 . 7 7 Power 6 | 1 1 . 1 3 Engine 4 | 1 . . 1 2 Core 2 | . 1 . . 1 Reactor . | . . . . . Propulsion 4 | 2 . . . 2 Treads 2 | . . . . 2 Leg . | . . . . . Wheel 2 | 2 . . . . Hover . | . . . . . Flight . | . . . . . Utility 8 | 1 4 . 2 1 Device 3 | . 3 . . . Storage 2 | 1 1 . . . Processor 3 | . . . 2 1 Hackware . | . . . . . Protection . | . . . . . Artifact . | . . . . . Weapon 7 | 2 . . 4 1 Energy Gun 3 | 1 . . 2 . Energy Cannon . | . . . . . Ballistic Gun 1 | 1 . . . . Ballistic Cannon 3 | . . . 2 1 Launcher . | . . . . . Special Weapon . | . . . . . Impact Weapon . | . . . . . Slashing Weapon . | . . . . . Piercing Weapon . | . . . . . Special Melee Weapon . | . . . . . Unidentified Prototypes 1 | . . . . 1 Parts Lost 15 | . . . 1 14 Power 5 | . . . 1 4 Propulsion 4 | . . . . 4 Utility 1 | . . . . 1 Weapon 5 | . . . . 5 Highest Loss Streak 8 | . . . 1 8 To Critical Strikes . | . . . . . Average Backups 6 | 4 6 8 7 5 Power . | 1 . 1 . . Propulsion 1 | . 2 2 2 1 Utility 2 | . 2 4 2 1 Weapon 1 | 2 1 1 2 1 Tool/Special . | . . . . . Unused Backups 9 | . 3 1 1 4 Power 2 | . 2 . . . Propulsion 1 | . . . . 1 Utility 4 | . 1 . 1 2 Weapon 2 | . . 1 . 1 Tool/Special . | . . . . . Average Slot Usage (%) 91 | . 97 100 99 76 Engine 3 | . 5 . . 7 Core 7 | . 9 14 10 1 Treads 2 | . . . . 6 Wheel 19 | . 28 28 22 7 Device 9 | . 11 14 11 3 Storage 11 | . 14 14 11 9 Processor 14 | . . . 21 27 Energy Gun 12 | . 14 14 18 6 Ballistic Gun 6 | . 14 14 3 . Ballistic Cannon 2 | . . . . 7 Peak Build Rating 21 | 6 11 12 19 21 Average Rating 13 | 3 9 11 16 17 On Entrance 9 | . 6 11 12 16 Naked Turns . | . . . . . Heaviest Build 25 | 14 15 15 23 25 Greatest Support 40 | 20 20 20 20 40 Greatest Overweight (x) 7 | 3 . . 1 7 Average Overweight (x) . | . . . . . Largest Inventory Capacity 25 | 8 25 8 8 8 Average Capacity 7 | 7 8 8 8 8 Most Carried 8 | 6 8 8 8 7 Average Carried 6 | 4 6 7 7 5 Final Capacity 8 | 8 8 8 8 8 Final Carried 8 | 4 8 8 7 4 Class Distribution -------------------- 100% | Mutant Dominant Class ---------------- Mutant | -10/Materials Mutant | -10/Mines Mutant | -9/Materials Mutant | -8/Materials Resources | -11 -10 -10 -9 -8 ----------- Run | Yrd Mat Min Mat Mat Matter Collected 499 | 156 150 47 69 77 Remotely . | . . . . . Salvage Created 610 | . 90 91 130 299 Parts 33 | . 9 2 7 15 Haulers Intercepted 1 | . . . . 1 Recyclers Shooed . | . . . . . Parts Field Recycled . | . . . . . Retrieved Matter . | . . . . . Parts Self-Destructed . | . . . . . Prevented . | . . . . . Kills | -11 -10 -10 -9 -8 ------- Run | Yrd Mat Min Mat Mat Combat Hostiles Destroyed 15 | . 1 2 2 10 Guns 9 | . 1 2 1 5 Cannons 4 | . . . . 4 Classes Destroyed 6 | . 2 . 1 3 Hauler 1 | . . . . 1 Watcher 4 | . 2 . 1 1 Swarmer 5 | . . . . 5 Grunt 6 | . 1 2 . 3 Sentry 2 | . . . 2 . Specialist 2 | . . . . 2 Best Kill Streak 3 | . 1 2 1 3 Combat Bots Only 3 | . 1 2 1 3 Max Kills in Single Turn 1 | . 1 1 1 1 Gunslinging . | . . . . . Exploded . | . . . . . Melee . | . . . . . Uniques/NPCs Destroyed . | . . . . . Combat | -11 -10 -10 -9 -8 -------- Run | Yrd Mat Min Mat Mat Hostile Shots Fired 297 | . . 9 25 263 Missed 111 | . . 4 12 95 Hits 186 | . . 5 13 168 Projectile 186 | . . 5 13 168 AOE 3 | . . 3 . . Critical Strikes 5 | . . . 1 4 Damage Taken 2223 | . . 128 135 1960 Core 610 | . . 36 23 551 Absorbed by Shields . | . . . . . Core Remaining (%) 93 | 100 . 85 94 . Volleys Fired 55 | . 4 8 8 35 Largest 2 | . 2 2 2 2 Hottest 112 | . 60 60 112 112 Shots Fired 110 | . 8 16 16 70 Gun 83 | . 8 16 16 43 Cannon 27 | . . . . 27 Launcher . | . . . . . Special . | . . . . . Kinetic 41 | . 4 8 2 27 Thermal 55 | . . . 12 43 Explosive . | . . . . . Electromagnetic 14 | . 4 8 2 . Robot Hit Streak 12 | . 4 11 12 12 Robot Miss Streak 10 | . 1 2 1 10 Penetration Max . | . . . . . Secondary Targets 3 | . 1 . . 2 Max Gunslinging Chain 1 | . 1 . . 1 Shots Hit Robots 81 | . 6 11 12 52 Core Hits 40 | . 3 5 3 29 Critical Kills 1 | . . . . 1 Critical Parts Destroyed . | . . . . . Critical Strikes 4 | . . . 1 3 Burn 3 | . . . 1 2 Destroy 1 | . . . . 1 Melee Attacks . | . . . . . Impact . | . . . . . Slashing . | . . . . . Piercing . | . . . . . Sneak Attacks . | . . . . . Combat Hostiles . | . . . . . Follow-up Attacks . | . . . . . Damage Inflicted 1327 | . 111 149 168 899 Guns 875 | . 111 149 168 447 Cannons 452 | . . . . 452 Explosions . | . . . . . Melee . | . . . . . Ramming . | . . . . . Kinetic 572 | . 38 67 15 452 Thermal 577 | . . . 130 447 Explosive . | . . . . . Electromagnetic 178 | . 73 82 23 . Impact . | . . . . . Slashing . | . . . . . Piercing . | . . . . . Highest Corruption . | . . . . . Average Corruption . | . . . . . Corruption Purged . | . . . . . Corruption Blocked . | . . . . . Overload Shots . | . . . . . Overflow Damage . | . . . . . Projectiles . | . . . . . Explosions . | . . . . . Melee . | . . . . . Knockbacks 12 | . . . . 12 Impact . | . . . . . Kinetic 12 | . . . . 12 Secondary . | . . . . . Self-Inflicted Damage . | . . . . . Shots . | . . . . . Rammed . | . . . . . Targets Rammed . | . . . . . Kicked . | . . . . . Crushed . | . . . . . Highest Temperature 117 | . . . 69 117 Average Temperature 28 | . . . 35 27 Received Heat Transfer 402 | . . 33 45 324 Siege Activations . | . . . . . Martial Activations . | . . . . . Shielding Activations . | . . . . . Robots Disrupted . | . . . . . Combat Hostiles . | . . . . . Robots Corrupted . | . . . . . Combat Hostiles . | . . . . . Parts Fried . | . . . . . Impact Corruptions . | . . . . . Robots Melted 2 | . . . 1 1 Combat Hostiles 2 | . . . 1 1 Parts Melted 6 | . . . 5 1 Heat Transferred 1702 | . . . 407 1295 Parts Sabotaged . | . . . . . Parts Stolen . | . . . . . Parts Stripped . | . . . . . Power Chain Reactions . | . . . . . Alert | -11 -10 -10 -9 -8 ------- Run | Yrd Mat Min Mat Mat Maximum Alert Level . | . . . . . Low Security (%) 100 | 100 100 100 100 100 Level 1 . | . . . . . Level 2 . | . . . . . Level 3 . | . . . . . Level 4 . | . . . . . Level 5 . | . . . . . High Security . | . . . . . Max Security . | . . . . . Peak Influence 102 | . 30 40 30 102 Initial 5 | . . . 5 . Average 17 | . 3 9 7 40 Influence Increases 482 | . 44 65 67 306 Destroy 0b10 Robot/C 300 | . 20 40 40 200 Destroy 0b10 Robot/NC 25 | . 10 . 5 10 Destroy Leader 80 | . 14 10 22 34 Disable Machine 15 | . . . . 15 Destroy Structure 2 | . . . . 2 Partial Spotted 15 | . . 15 . . Lose Combat Pursuer 45 | . . . . 45 Influence Decreases 467 | . 44 50 82 291 Entered New Map 10 | . . . 10 . Time Decay 327 | . 44 50 62 171 Lost Part 130 | . . . 10 120 Squads Dispatched 7 | . 2 . . 5 Investigation 1 | . 1 . . . Extermination . | . . . . . Reinforcement 3 | . 1 . . 2 Assault . | . . . . . Garrison 3 | . . . . 3 Intercept . | . . . . . Searches Triggered . | . . . . . Construction Impeded . | . . . . . Haulers Reinforced . | . . . . . Active Scanning Responses . | . . . . . Cargo Convoy Interrupts . | . . . . . Stealth | -11 -10 -10 -9 -8 --------- Run | Yrd Mat Min Mat Mat Distress Signals 1 | . . . . 1 Communications Jammed . | . . . . . Distress Signals . | . . . . . Times Spotted 40 | . 8 3 9 20 Peak Tracking Total 7 | . 2 2 6 7 Tactical Retreats 3 | . . . . 3 Traps | -11 -10 -10 -9 -8 ------- Run | Yrd Mat Min Mat Mat Traps Triggered . | . . . . . Indirectly . | . . . . . Trap Hack Attempts . | . . . . . Triggered . | . . . . . Disarmed . | . . . . . Reprogrammed . | . . . . . Reused . | . . . . . Traps Extracted . | . . . . . Installed . | . . . . . Triggered . | . . . . . Machines | -11 -10 -10 -9 -8 ---------- Run | Yrd Mat Min Mat Mat Machines Disabled 1 | . . . . 1 Max in Single Turn 1 | . . . . 1 Machines Repaired . | . . . . . Machines Dismantled . | . . . . . Machines Sabotaged . | . . . . . Overloaded Fab Kills . | . . . . . Hacking | -11 -10 -10 -9 -8 --------- Run | Yrd Mat Min Mat Mat Machines Accessed 2 | . 1 . 1 . Terminals 1 | . . . 1 . Fabricators . | . . . . . Repair Stations . | . . . . . Recycling Units 1 | . 1 . . . Scanalyzers . | . . . . . Garrison Access . | . . . . . Total Hacks 4 | . 3 . 1 . Successful 3 | . 2 . 1 . Failed 1 | . 1 . . . Catastrophic . | . . . . . Database Lockouts . | . . . . . Manual . | . . . . . Terminals 1 | . . . 1 . Fabricators . | . . . . . Repair Stations . | . . . . . Recycling Units 3 | . 3 . . . Scanalyzers . | . . . . . Garrison Access . | . . . . . Terminal Hacks 1 | . . . 1 . Record 1 | . . . 1 . Fabricator Hacks . | . . . . . Repair Station Hacks . | . . . . . Recycling Unit Hacks 2 | . 2 . . . Recycle Component 2 | . 2 . . . Scanalyzer . | . . . . . Garrison Access Hacks . | . . . . . Unauthorized Hacks . | . . . . . Terminals . | . . . . . Fabricators . | . . . . . Repair Stations . | . . . . . Recycling Units . | . . . . . Scanalyzers . | . . . . . Garrison Access . | . . . . . Data Cores Recovered . | . . . . . Used . | . . . . . Hacking Detections . | . . . . . Full Trace Events . | . . . . . Feedback Events . | . . . . . Feedback Blocked . | . . . . . Robot Schematics Acquired . | . . . . . Robots Built . | . . . . . Authchips . | . . . . . Time . | . . . . . Total Robot Build Rating . | . . . . . Part Schematics Acquired . | . . . . . Parts Built . | . . . . . Authchips . | . . . . . Time . | . . . . . Total Part Build Rating . | . . . . . Parts Repaired . | . . . . . Time . | . . . . . Parts Recycled 2 | . 2 . . . Recycled Matter . | . . . . . Retrieved Matter . | . . . . . Retrieved Components . | . . . . . Parts Scanalyzed . | . . . . . Part Schematics Acquired . | . . . . . Parts Damaged . | . . . . . Bothacking | -11 -10 -10 -9 -8 ------------ Run | Yrd Mat Min Mat Mat Used RIF Installer . | . . . . . Robots Hacked . | . . . . . Non-combat . | . . . . . Combat . | . . . . . Robot Hacks Applied . | . . . . . Relay Couplers Released . | . . . . . Fabnet Peak Effective % . | . . . . . Robots Rewired . | . . . . . Allies Hacked . | . . . . . Hacks Repelled . | . . . . . Allies | -11 -10 -10 -9 -8 -------- Run | Yrd Mat Min Mat Mat Total Allies . | . . . . . Largest Group . | . . . . . Highest-Rated Group . | . . . . . Highest-Rated Ally . | . . . . . Total Orders . | . . . . . Ally Attacks . | . . . . . Total Damage . | . . . . . Kills . | . . . . . Allies Corrupted . | . . . . . Allies Melted . | . . . . . Intel | -11 -10 -10 -9 -8 ------- Run | Yrd Mat Min Mat Mat Active Infowar (turns) 710 | . . . 306 404 Optics 710 | . . . 306 404 Robot Analysis Total . | . . . . . Derelict Logs Recovered 1 | . . 1 . . Drone Launches . | . . . . . Drone Recoveries . | . . . . . Exploration | -11 -10 -10 -9 -8 ------------- Run | Yrd Mat Min Mat Mat Turns Passed 1289 | 89 272 218 306 404 Spaces Moved 1100 | 58 296 202 321 223 Core 59 | 18 . . . 41 Treads 83 | . . . . 83 Legs . | . . . . . Wheels 958 | 40 296 202 321 99 Hover . | . . . . . Flight . | . . . . . Fastest Speed 50 | 50 80 80 80 80 Average Speed 89 | 91 80 80 80 122 Slowest Speed 400 | 200 80 80 95 400 Overloaded Moves . | . . . . . Propulsion Burnouts . | . . . . . Robots Hopped . | . . . . . Potential Cave-ins . | . . . . . Cave-ins Triggered . | . . . . . Exploration Rate (%) 27 | 3 45 33 29 28 Regions Visited 4 Branch Regions 1 Pre-discovered Areas . | . . . . . Known Exits Taken 1 | . . . 1 . Unknown Exits Taken 3 | 1 1 1 . . Scrap Searched . | . . . . . Spaces Dug . | . . . . . Terrain Destroyed 2 | . . . . 2 Melee . | . . . . . Projectile 2 | . . . . 2 AOE . | . . . . . Terrain Rammed . | . . . . . Walls Destroyed . | . . . . . Machines Disabled . | . . . . . Actions | -11 -10 -10 -9 -8 --------- Run | Yrd Mat Min Mat Mat Total 1292 | 93 321 242 353 283 Wait 73 | 20 6 31 6 10 Move 1096 | 57 295 201 320 223 Hop . | . . . . . Pick Up 31 | 10 7 1 7 6 Fast Attach . | . . . . . Attach 19 | 6 1 . 3 9 Detach . | . . . . . Swap 9 | . 5 . 4 . Drop 9 | . 3 1 5 . Fire 55 | . 4 8 8 35 Melee . | . . . . . Ram . | . . . . . Kick . | . . . . . Crush . | . . . . . Escape Stasis . | . . . . . Rewire . | . . . . . Trap . | . . . . . Miscellaneous . | . . . . . Route ------- -11/Scrapyard -10/Materials (discovered 3 exits: *Mat x2 / [*Min]) -10/Mines -9/Materials -8/Materials (discovered 1 exit: [*Fac]) History --------- Turn | Location | Event 16 | -11/Scrapyard | Discovered new exit (range 16) 90 | -11/Scrapyard | Entered Materials 91 | -10/Materials | Met a group of wandering Federalists 127 | -10/Materials | Discovered new exit (range 13) 256 | -10/Materials | Discovered new exit (range 13) 316 | -10/Materials | Build established: Mutant 334 | -10/Materials | Discovered new exit (range 7) 362 | -10/Materials | Entered Mines 380 | -10/Mines | A weapon hastily lodged in a ceiling crevice suddenly fell to the ground 569 | -10/Mines | Discovered new exit (range 6) 580 | -10/Mines | Entered Materials 580 | -9/Materials | Evolved 2 slots: Utility x2 791 | -9/Materials | Discovered new exit (range 13) 885 | -9/Materials | Identified exit to Materials 886 | -9/Materials | Entered another Materials area 886 | -8/Materials | Evolved 2 slots: Power x1, Utility x1 931 | -8/Materials | Garrison activated, responded to threat 1106 | -8/Materials | Core integrity fell below 50% 1113 | -8/Materials | Lost 8 parts (2p2n1u3w) 1260 | -8/Materials | Core integrity fell below 20% 1272 | -8/Materials | Discovered new exit (range 18) 1290 | -8/Materials | Destroyed by X-62 Marksman with Gauss Rifle Last Messages --------------- 01236_ X-62 Marksman destroyed. 01239_ X-57 Shotgunner knocked back. 01240_ K-01 Serf collects debris. 01241_ K-01 Serf destroyed. 01242_ X-57 Shotgunner knocked back. 01249_ Slug penetrates Wall. 01254_ M-13 Machinist repairs X-57 Shotgunner. 01255_ X-62 Marksman knocked back. 01255_ Flak Cannon destroyed. 01259_ Penetrated by Slug. 01272_ EXIT=FOUND 01273_ Penetrated by Slug. 01273_ Hvy. Ion Engine destroyed. 01273_ Lgt. Treads destroyed. 01279_ Flak Cannon destroyed. 01279_ K-01 Serf cleans the Atomic Centrifuge. 01282_ Penetrated by Slug. 01284_ K-01 Serf cleans the Atomic Centrifuge. 01285_ Lgt. Treads destroyed. 01286_ Penetrated by Slug. Map ----- +----------------------------------------------------+ | | | | | | | | | | | ?????????????????????????????????????????????????? | | ?????????????????????????????????????????????????? | | ?????????????????????????????????????????????????? | | ?????????????????????????????????????????????????? | | ?????????????????????????????????????????????????? | | ?????????????????????????????????????????????????? | | ?????????????????????????????????????????????????? | | ?????????????????????????????????????????????????? | | ?????????????????????????????????????????????????? | | ?????????????????????????????????????????????????? | | ?????????????????????????????????????????????????? | | ?????????????????????????????????????????????????? | | ?????????????????????????????????????????????????? | | ?????????????????????#########???????????????????? | | ?????????????????????# !##??????????????????? | | ?????????????????????# < !#??????????????????? | | ?????????????????????# !#??????????????????? | | ?????????????????????# !#??????????????????? | | ?????????????????????# !???????????????????? | | ?????????????????????# ?????????????????????? | | ?????????????????????# @#??????????????????????? | | ?????????????????????# #????#####?????????????? | | ?????????????????????# #?? ! [?????????????? | | ?????????????????????# # """ [[ ??????????? | | ?????????????????????# + "R [[ ??????????? | | ?????????????????????# # """ ??????????? | | ?????????????????????# #?? ?????????????? | | ?????????????????????# ##?#+#####?????????????? | | ??????????#+######+### #?# #?????????????????? | | ????????? ^ #?# #?????????????????? | | ????????? #?# #?????????????????? | | ????????? ^ #?# #?????????????????? | | ??????????##### ^ k #?# ###???????????????? | | ??????????????# x #?# ????????????????? | | ????????????? # k #?# ####+####????????? | | ????????????? +^ """^ k ### # ?????????? | | ??????????????# """ x## #? [ [?????????? | | ??????????????# """ a##% #? ??????????? | | ??????????????# #?? ??????????? | | ??????????????# ### #?? ???????????? | | ??????????????# ######+##?# ####+######????### | | ??????????????# #?????????# # ###### | | ??????????????# #?????????# # """ / + | | ??????????????#= !#?????????# # """"" # # | | ??????????????#! %#?????????#! # """"" # # | +----------------------------------------------------+ Best States ------------- Heat Dissipation 45 Energy Generation 19 Energy Capacity 310 Matter Stores 300 Matter Capacity 300 Sight Range 18 Terrain Scan Density 10 Evasion (%) 50 Targeting Accuracy 8 Recoil Reduction 2 Item Schematics ----------------- None Robot Schematics ------------------ None Fabricated ------------ Nothing Repaired ---------- Nothing Alien Tech Used ----------------- None Achievements -------------- None Challenges ------------ None Game ------ Seed WeightTimingEdition Manual? 0 Play Time 00:56:05 Cumulative 10.8 hours Start 2025.07.20 @ 14:11:06 End 2025.07.20 @ 15:27:06 Sessions 1 Manual Loads 0 Difficulty Rogue Special Mode None Game No. 6 Rogue 6 Adventurer 0 Explorer 0 Win Type - Total 0 Types 0/0/0/0/0/0/0/0/0/0 Lore% 2 Gallery% 9 Achievement% 14 Wizard Run 0 Options --------- Layout 0 ASCII 0 Keyboard 0 Movement Mouse Keybinds 0 Fullscreen 1 Font 36/Smallcaps Map View 76x50 Zoom Use 25% Tactical HUD 1 Map Filters NONE Filters NONE Steam 1 RUN: fefaf374-b2de-406b-b439-92e509fa5fe9